fUSD/lending_fUSD_20250105
["ID","MTS","AMOUNT","RATE_DAILY","PERIOD"]
[347731505,1736086260597,-500.0,9.041e-05,2]
[347731506,1736086260607,-500.0,9.041e-05,2]
[347731507,1736086260618,-500.0,9.041e-05,2]
[347731508,1736086260628,-500.0,9.041e-05,2]
[347731509,1736086260637,-1703.87,9.041e-05,2]
[347731510,1736086260647,-2197.06,9.041e-05,2]
[347731511,1736086260656,-500.0,9.041e-05,2]
[347731512,1736086260666,-500.0,9.041e-05,2]
[347731513,1736086260676,-899.43,9.041e-05,2]
[347731514,1736086260685,-2373.8,9.041e-05,2]
[347731515,1736086260695,-500.0,9.041e-05,2]
[347731516,1736086260705,-1005.15,9.041e-05,2]
[347731517,1736086260715,-508.31,9.041e-05,2]
[347731518,1736086260724,-506.97,9.041e-05,2]
[347731519,1736086260734,-500.0,9.041e-05,2]
[347731520,1736086260744,-500.0,9.041e-05,2]
[347731521,1736086260753,-500.0,9.041e-05,2]
[347731522,1736086260763,-500.0,9.041e-05,2]
[347731523,1736086260773,-500.0,9.041e-05,2]
[347731524,1736086260783,-2889.58,9.041e-05,2]
[347731525,1736086260793,-500.0,9.041e-05,2]
[347731526,1736086260802,-500.0,9.041e-05,2]
[347731527,1736086260811,-911.64,9.041e-05,2]
[347731528,1736086260821,-2174.62,9.041e-05,2]
[347731529,1736086260831,-1428.62,9.041e-05,2]
[347731530,1736086260840,-655.98,9.041e-05,2]
[347731531,1736086260849,-500.0,9.041e-05,2]
[347731532,1736086260860,-500.0,9.041e-05,2]
[347731533,1736086260870,-500.0,9.041e-05,2]
[347731534,1736086260880,-704.61,9.041e-05,2]
[347731535,1736086260890,-901.88,9.041e-05,2]
[347731536,1736086260900,-599.03,9.041e-05,2]
[347731537,1736086260909,-1497.71,9.041e-05,2]
[347731538,1736086260919,-500.0,9.041e-05,2]
[347731539,1736086260929,-500.0,9.041e-05,2]
[347731540,1736086260939,-500.0,9.041e-05,2]
[347731541,1736086260949,-1229.08,9.041e-05,2]
[347731542,1736086260959,-500.0,9.041e-05,2]
[347731543,1736086260968,-589.79,9.041e-05,2]
[347731544,1736086260984,-500.0,9.041e-05,2]
[347731545,1736086260994,-373.29,9.041e-05,2]
[347731546,1736086261004,-2359.51,9.041e-05,2]
[347731547,1736086261015,-500.0,9.041e-05,2]
[347731548,1736086261026,-2408.08,9.041e-05,2]
[347731549,1736086261036,-500.0,9.041e-05,2]
[347731550,1736086261046,-560.21,9.041e-05,2]
[347731551,1736086261055,-279.63420386,9.041e-05,2]
[347731552,1736086261065,-1581.41,9.041e-05,2]
[347731553,1736086261075,-500.0,9.041e-05,2]
[347731554,1736086261084,-638.7,9.041e-05,2]
[347731555,1736086261094,-500.0,9.041e-05,2]
[347731556,1736086261104,-1032.99,9.041e-05,2]
[347731557,1736086261115,-500.0,9.041e-05,2]
[347731558,1736086261124,-500.0,9.041e-05,2]
[347731559,1736086261134,-3209.15,9.041e-05,2]
[347731560,1736086261143,-837.18,9.041e-05,2]
[347731561,1736086261153,-1042.34,9.041e-05,2]
[347731562,1736086261163,-504.24,9.041e-05,2]
[347731563,1736086261173,-1100.95,9.041e-05,2]
[347731564,1736086261183,-500.0,9.041e-05,2]
[347731565,1736086261192,-500.0,9.041e-05,2]
[347731566,1736086261202,-974.42,9.041e-05,2]
[347731567,1736086261212,-1961.68,9.041e-05,2]
[347731568,1736086261221,-1049.33,9.041e-05,2]
[347731569,1736086261231,-1178.04,9.041e-05,2]
[347731570,1736086261244,-500.0,9.041e-05,2]
[347731571,1736086261254,-1749.25,9.041e-05,2]
[347731572,1736086261262,-930.1,9.041e-05,2]
[347731573,1736086261272,-500.0,9.041e-05,2]
[347731574,1736086261283,-1008.32,9.041e-05,2]
[347731575,1736086261293,-500.0,9.041e-05,2]
[347731576,1736086261302,-500.0,9.041e-05,2]
[347731577,1736086261312,-683.59,9.041e-05,2]
[347731578,1736086261323,-500.0,9.041e-05,2]
[347731579,1736086261333,-500.0,9.041e-05,2]
[347731580,1736086261342,-500.0,9.041e-05,2]
[347731581,1736086261352,-1412.79,9.041e-05,2]
[347731582,1736086261364,-500.0,9.041e-05,2]
[347731583,1736086261374,-832.75,9.041e-05,2]
[347731584,1736086261383,-2825.82,9.041e-05,2]
[347731585,1736086261393,-500.0,9.041e-05,2]
[347731586,1736086261403,-822.24,9.041e-05,2]
[347731587,1736086261413,-500.0,9.041e-05,2]
[347731588,1736086261423,-500.0,9.041e-05,2]
[347731589,1736086261432,-1523.287914,9.041e-05,2]
[347731590,1736086261442,-500.0,9.041e-05,2]
[347731591,1736086261452,-500.0,9.041e-05,2]
[347731592,1736086261463,-589.48,9.041e-05,2]
[347731593,1736086261473,-500.0,9.041e-05,2]
[347731594,1736086261482,-870.32,9.041e-05,2]
[347731595,1736086261492,-3147.42,9.041e-05,2]
[347731596,1736086261503,-1678.38,9.041e-05,2]
[347731597,1736086261512,-855.83,9.041e-05,2]
[347731598,1736086261523,-511.8,9.041e-05,2]
[347731599,1736086261533,-500.0,9.041e-05,2]
[347731600,1736086261543,-905.92,9.041e-05,2]
[347731601,1736086261554,-500.0,9.041e-05,2]
[347731602,1736086261563,-500.0,9.041e-05,2]
[347731603,1736086261573,-835.26,9.041e-05,2]
[347731604,1736086261583,-500.0,9.041e-05,2]
[347731605,1736086261594,-815.39,9.041e-05,2]
[347731606,1736086261605,-411.42136246,9.041e-05,2]
[347731607,1736086261616,-919.05,9.041e-05,2]
[347731608,1736086261626,-521.7,9.041e-05,2]
[347731609,1736086261636,-632.46,9.041e-05,2]
[347731610,1736086261647,-500.0,9.041e-05,2]
[347731611,1736086261657,-1525.261953,9.041e-05,2]
[347731612,1736086261668,-500.0,9.041e-05,2]
[347731613,1736086261945,-1035.87,9.041e-05,2]
[347731614,1736086261955,-500.0,9.041e-05,2]
[347731615,1736086261966,-517.08,9.041e-05,2]
[347731616,1736086261975,-932.91,9.041e-05,2]
[347731617,1736086261985,-500.0,9.041e-05,2]
[347731618,1736086261995,-650.48,9.041e-05,2]
[347731619,1736086262005,-1005.75,9.041e-05,2]
[347731620,1736086262015,-500.0,9.041e-05,2]
[347731621,1736086262025,-500.0,9.041e-05,2]
[347731622,1736086262035,-1429.58,9.041e-05,2]
[347731623,1736086262044,-1158.29,9.041e-05,2]
[347731624,1736086262055,-529.27,9.041e-05,2]
[347731625,1736086262065,-519.69,9.041e-05,2]
[347731626,1736086262075,-500.0,9.041e-05,2]
[347731627,1736086262084,-1200.34,9.041e-05,2]
[347731628,1736086262094,-2958.09,9.041e-05,2]
[347731629,1736086262104,-1501.22,9.041e-05,2]
[347731630,1736086262114,-5860.52,9.041e-05,2]
[347731631,1736086262124,-500.0,9.041e-05,2]
[347731632,1736086262135,-977.58,9.041e-05,2]
[347731633,1736086262144,-500.0,9.041e-05,2]
[347731634,1736086262155,-3536.32,9.041e-05,2]
[347731635,1736086262164,-500.0,9.041e-05,2]
[347731636,1736086262174,-678.69,9.041e-05,2]
[347731637,1736086262184,-628.69,9.041e-05,2]
[347731638,1736086262193,-3332.56,9.041e-05,2]
[347731639,1736086262203,-1935.77,9.041e-05,2]
[347731640,1736086262213,-500.0,9.041e-05,2]
[347731641,1736086262223,-500.0,9.041e-05,2]
[347731642,1736086262237,-504.51,9.041e-05,2]
[347731643,1736086262247,-879.4,9.041e-05,2]
[347731644,1736086262257,-1311.86,9.041e-05,2]
[347731645,1736086262267,-1630.51,9.041e-05,2]
[347731646,1736086262278,-519.6,9.041e-05,2]
[347731647,1736086262287,-500.0,9.041e-05,2]
[347731648,1736086262297,-9308.75,9.041e-05,2]
[347731649,1736086262308,-1213.07,9.041e-05,2]
[347731650,1736086262320,-500.0,9.041e-05,2]
[347731651,1736086262330,-500.0,9.041e-05,2]
[347731652,1736086262340,-151.0,9.041e-05,2]
[347731653,1736086262351,-3435.58,9.041e-05,2]
[347731654,1736086262363,-4669.0,9.041e-05,2]
[347731655,1736086262373,-1489.62,9.041e-05,2]
[347731656,1736086262383,-1597.97,9.041e-05,2]
[347731657,1736086262393,-5012.35,9.041e-05,2]
[347731658,1736086262404,-1263.16,9.041e-05,2]
[347731659,1736086262415,-500.0,9.041e-05,2]
[347731660,1736086262425,-500.0,9.041e-05,2]
[347731661,1736086262435,-500.0,9.041e-05,2]
[347731662,1736086262445,-2864.48,9.041e-05,2]
[347731663,1736086262455,-1249.3,9.041e-05,2]
[347731664,1736086262465,-2311.19,9.041e-05,2]
[347731665,1736086262474,-513.24,9.041e-05,2]
[347731666,1736086262485,-1964.09,9.041e-05,2]
[347731667,1736086262495,-2634.69,9.041e-05,2]
[347731668,1736086262505,-1657.78,9.041e-05,2]
[347731669,1736086262515,-574.02,9.041e-05,2]
[347731670,1736086262525,-500.0,9.041e-05,2]
[347731671,1736086262534,-5089.6,9.041e-05,2]
[347731672,1736086262544,-721.81,9.041e-05,2]
[347731673,1736086262555,-500.0,9.041e-05,2]
[347731674,1736086262566,-500.0,9.041e-05,2]
[347731675,1736086262576,-500.0,9.041e-05,2]
[347731676,1736086262586,-500.0,9.041e-05,2]
[347731677,1736086262596,-2656.05,9.041e-05,2]
[347731678,1736086262606,-16233.05,9.041e-05,2]
[347731679,1736086262618,-500.0,9.041e-05,2]
[347731680,1736086262628,-3323.05,9.041e-05,2]
[347731681,1736086262638,-500.0,9.041e-05,2]
[347731682,1736086262648,-6311.87,9.041e-05,2]
[347731683,1736086262659,-952.05,9.041e-05,2]
[347731684,1736086262669,-500.0,9.041e-05,2]
[347731685,1736086262680,-500.0,9.041e-05,2]
[347731686,1736086262690,-500.0,9.041e-05,2]
[347731687,1736086262699,-2832.75,9.041e-05,2]
[347731688,1736086262709,-500.0,9.041e-05,2]
[347731689,1736086262720,-1869.42,9.041e-05,2]
[347731690,1736086262730,-500.0,9.041e-05,2]
[347731691,1736086262740,-500.0,9.041e-05,2]
[347731692,1736086262750,-1239.18,9.041e-05,2]
[347731693,1736086262760,-994.54,9.041e-05,2]
[347731694,1736086262771,-500.0,9.041e-05,2]
[347731695,1736086262781,-500.0,9.041e-05,2]
[347731696,1736086262791,-1009.28,9.041e-05,2]
[347731697,1736086262801,-1207.47,9.041e-05,2]
[347731698,1736086262811,-6267.41,9.041e-05,2]
[347731699,1736086262822,-1569.79,9.041e-05,2]
[347731700,1736086262832,-1589.36,9.041e-05,2]
[347731701,1736086262842,-500.0,9.041e-05,2]
[347731702,1736086262852,-500.0,9.041e-05,2]
[347731703,1736086262862,-500.0,9.041e-05,2]
[347731704,1736086262872,-500.0,9.041e-05,2]
[347731705,1736086262882,-1024.17,9.041e-05,2]
[347731706,1736086262891,-2588.57,9.041e-05,2]
[347731707,1736086262901,-896.58,9.041e-05,2]
[347731708,1736086262911,-7016.37,9.041e-05,2]
[347731709,1736086262921,-500.0,9.041e-05,2]
[347731710,1736086262930,-500.0,9.041e-05,2]
[347731711,1736086262940,-4111.43,9.041e-05,2]
[347731712,1736086262950,-671.19,9.041e-05,2]
[347731713,1736086262959,-500.0,9.041e-05,2]
[347731714,1736086262969,-4240.05,9.041e-05,2]
[347731715,1736086262979,-929.79,9.041e-05,2]
[347731716,1736086262989,-605.42,9.041e-05,2]
[347731717,1736086262999,-3907.13,9.041e-05,2]
[347731718,1736086263009,-7031.39,9.041e-05,2]
[347731719,1736086263018,-500.0,9.041e-05,2]
[347731720,1736086263028,-500.0,9.041e-05,2]
[347731721,1736086263037,-500.0,9.041e-05,2]
[347731722,1736086263047,-790.23,9.041e-05,2]
[347731723,1736086263057,-2252.76,9.041e-05,2]
[347731724,1736086263067,-1387.02,9.041e-05,2]
[347731725,1736086263078,-823.31,9.041e-05,2]
[347731726,1736086263089,-2324.58,9.041e-05,2]
[347731727,1736086263099,-500.0,9.041e-05,2]
[347731728,1736086263112,-500.0,9.041e-05,2]
[347731729,1736086263122,-716.23,9.041e-05,2]
[347731730,1736086263133,-500.0,9.041e-05,2]
[347731731,1736086263143,-3251.01,9.041e-05,2]
[347731732,1736086263154,-500.0,9.041e-05,2]
[347731733,1736086263164,-1363.75,9.041e-05,2]
[347731734,1736086263175,-500.0,9.041e-05,2]
[347731735,1736086263186,-596.77,9.041e-05,2]
[347731736,1736086263196,-5143.92,9.041e-05,2]
[347731737,1736086263207,-500.0,9.041e-05,2]
[347731738,1736086263217,-500.0,9.041e-05,2]
[347731739,1736086263228,-1331.41,9.041e-05,2]
[347731740,1736086263242,-6239.8,9.041e-05,2]
[347731741,1736086263253,-500.0,9.041e-05,2]
[347731742,1736086263263,-500.0,9.041e-05,2]
[347731743,1736086263276,-6109.07,9.041e-05,2]
[347731744,1736086263285,-8535.66,9.041e-05,2]
[347731745,1736086263295,-3488.16,9.041e-05,2]
[347731746,1736086263305,-2449.34,9.041e-05,2]
[347731747,1736086263316,-500.0,9.041e-05,2]
[347731748,1736086263326,-500.0,9.041e-05,2]
[347731749,1736086263336,-500.0,9.041e-05,2]
[347731750,1736086263346,-1868.76,9.041e-05,2]
[347731751,1736086263356,-588.35,9.041e-05,2]
[347731752,1736086263368,-500.0,9.041e-05,2]
[347731753,1736086263378,-4269.26,9.041e-05,2]
[347731754,1736086263389,-7071.13,9.041e-05,2]
[347731755,1736086263399,-500.0,9.041e-05,2]
[347731756,1736086263409,-175.92,9.041e-05,2]
[347731757,1736086263420,-895.4579149,9.041e-05,2]
[347731758,1736086263429,-1810.81,9.041e-05,2]
[347731759,1736086263440,-2209.49,9.041e-05,2]
[347731760,1736086263450,-841.79,9.041e-05,2]
[347731761,1736086263461,-1541.47,9.041e-05,2]
[347731762,1736086263471,-3729.17,9.041e-05,2]
[347731763,1736086263483,-1708.96,9.041e-05,2]
[347731764,1736086263494,-2379.7,9.041e-05,2]
[347731765,1736086263505,-500.0,9.041e-05,2]
[347731766,1736086263515,-1654.18,9.041e-05,2]
[347731767,1736086263525,-10522.04,9.041e-05,2]
[347731768,1736086263537,-1819.97,9.041e-05,2]
[347731769,1736086263547,-2051.31,9.041e-05,2]
[347731770,1736086263558,-4321.58,9.041e-05,2]
[347731771,1736086263568,-500.0,9.041e-05,2]
[347731772,1736086263580,-3465.08,9.041e-05,2]
[347731773,1736086263590,-562.35,9.041e-05,2]
[347731774,1736086263600,-500.0,9.041e-05,2]
[347731775,1736086263611,-2042.12,9.041e-05,2]
[347731776,1736086263625,-500.0,9.041e-05,2]
[347731777,1736086263637,-777.63,9.041e-05,2]
[347731778,1736086263647,-500.0,9.041e-05,2]
[347731779,1736086263658,-945.76,9.041e-05,2]
[347731780,1736086263669,-595.33,9.041e-05,2]
[347731781,1736086263681,-500.0,9.041e-05,2]
[347731782,1736086263692,-1666.12,9.041e-05,2]
[347731783,1736086263703,-251.64,9.041e-05,2]
[347731784,1736086263714,-2741.12,9.041e-05,2]
[347731785,1736086263724,-500.0,9.041e-05,2]
[347731786,1736086263735,-7347.35,9.041e-05,2]
[347731787,1736086263746,-1040.91,9.041e-05,2]
[347731788,1736086263757,-702.43,9.041e-05,2]
[347731789,1736086263769,-989.73,9.041e-05,2]
[347731790,1736086263780,-1063.03,9.041e-05,2]
[347731791,1736086263792,-804.87,9.041e-05,2]
[347731792,1736086263803,-2301.74,9.041e-05,2]
[347731793,1736086263814,-3057.33,9.041e-05,2]
[347731794,1736086263830,-4392.68,9.041e-05,2]
[347731795,1736086263842,-500.0,9.041e-05,2]
[347731796,1736086263852,-798.46,9.041e-05,2]
[347731797,1736086263865,-1986.58,9.041e-05,2]
[347731798,1736086263877,-500.0,9.041e-05,2]
[347731799,1736086263888,-2929.94,9.041e-05,2]
[347731800,1736086263899,-899.63,9.041e-05,2]
[347731801,1736086263910,-736.62,9.041e-05,2]
[347731802,1736086263921,-956.97,9.041e-05,2]
[347731803,1736086263932,-2240.63,9.041e-05,2]
[347731804,1736086263942,-1666.12,9.041e-05,2]
[347731805,1736086263953,-500.0,9.041e-05,2]
[347731806,1736086263964,-3157.56,9.041e-05,2]
[347731807,1736086263974,-500.0,9.041e-05,2]
[347731808,1736086263985,-1129.82,9.041e-05,2]
[347731809,1736086263996,-643.49,9.041e-05,2]
[347731810,1736086264008,-1714.77,9.041e-05,2]
[347731811,1736086264019,-500.0,9.041e-05,2]
[347731812,1736086264030,-500.0,9.041e-05,2]
[347731813,1736086264040,-799.02,9.041e-05,2]
[347731814,1736086264050,-500.0,9.041e-05,2]
[347731815,1736086264061,-500.0,9.041e-05,2]
[347731816,1736086264071,-5906.8,9.041e-05,2]
[347731817,1736086264081,-1112.43,9.041e-05,2]
[347731818,1736086264092,-500.0,9.041e-05,2]
[347731819,1736086264103,-500.0,9.041e-05,2]
[347731820,1736086264116,-1629.2,9.041e-05,2]
[347731821,1736086264127,-747.98,9.041e-05,2]
[347731822,1736086264139,-1925.38,9.041e-05,2]
[347731823,1736086264150,-1977.81,9.041e-05,2]
[347731824,1736086264161,-1258.69,9.041e-05,2]
[347731825,1736086264171,-1195.92,9.041e-05,2]
[347731826,1736086264182,-200.0,9.041e-05,2]
[347731827,1736086264196,-2476.916,9.052e-05,2]
[347731828,1736086264206,-179.744,9.052e-05,2]
[347731829,1736086264218,-1800.0,9.072e-05,2]
[347731830,1736086264229,-500.0,9.072e-05,2]
[347731831,1736086264243,-558.8,9.162e-05,2]
[347731832,1736086264255,-1057.0,9.179e-05,2]
[347731833,1736086264265,-150.0,9.19e-05,2]
[347731834,1736086264276,-150.0,9.19e-05,2]
[347731835,1736086264286,-150.0,9.219e-05,2]
[347731836,1736086264296,-150.0,9.219e-05,2]
[347731837,1736086264306,-217.85,9.219e-05,2]
[347731838,1736086264317,-250.0,9.219e-05,2]
[347731839,1736086264327,-150.339,9.219e-05,2]
[347731840,1736086264337,-2014.0,9.219e-05,2]
[347731841,1736086264347,-1267.0,9.219e-05,2]
[347731842,1736086264357,-566.0,9.219e-05,2]
[347731843,1736086264368,-634.0,9.219e-05,2]
[347731844,1736086264378,-150.0,9.219e-05,2]
[347731845,1736086264389,-1860.0,9.219e-05,2]
[347731846,1736086264400,-918.0,9.219e-05,2]
[347731847,1736086264410,-3775.0,9.219e-05,2]
[347731848,1736086264495,-1258.0,9.219e-05,2]
[347731849,1736086264504,-819.0,9.219e-05,2]
[347731850,1736086264514,-3722.0,9.219e-05,2]
[347731851,1736086264525,-537.0,9.219e-05,2]
[347731852,1736086264536,-1103.0,9.219e-05,2]
[347731853,1736086264547,-163.88,9.247e-05,2]
[347731854,1736086264560,-1000.0,9.247e-05,2]
[347731855,1736086264573,-152.0214474,9.307e-05,2]
[347731856,1736086264584,-500.0,9.307e-05,2]
[347731857,1736086264596,-500.0,9.307e-05,2]
[347731858,1736086264605,-530454.47199328,9.313e-05,2]
[347731859,1736086264615,-500.0,9.315e-05,2]
[347731860,1736086264624,-500.0,9.315e-05,2]
[347731861,1736086264634,-500.0,9.315e-05,2]
[347731862,1736086264642,-500.0,9.315e-05,2]
[347731863,1736086264651,-690.85,9.315e-05,2]
[347731864,1736086264660,-500.0,9.315e-05,2]
[347731865,1736086264669,-500.0,9.315e-05,2]
[347731866,1736086264679,-500.0,9.315e-05,2]
[347731867,1736086264688,-1085.7,9.315e-05,2]
[347731868,1736086264697,-720.82,9.315e-05,2]
[347731869,1736086264705,-554.43,9.315e-05,2]
[347731870,1736086264715,-560.32,9.315e-05,2]
[347731871,1736086264725,-500.0,9.315e-05,2]
[347731872,1736086264734,-500.0,9.315e-05,2]
[347731873,1736086264744,-500.0,9.315e-05,2]
[347731874,1736086264753,-500.0,9.315e-05,2]
[347731875,1736086264763,-238.60395125,9.315e-05,2]
[347731876,1736086264774,-500.0,9.315e-05,2]
[347731877,1736086264783,-500.0,9.315e-05,2]
[347731878,1736086264792,-892.7,9.315e-05,2]
[347731879,1736086264803,-531.08,9.315e-05,2]
[347731880,1736086264813,-500.0,9.315e-05,2]
[347731881,1736086264822,-500.0,9.315e-05,2]
[347731882,1736086264832,-500.0,9.315e-05,2]
[347731883,1736086264842,-500.0,9.315e-05,2]
[347731884,1736086264851,-500.0,9.315e-05,2]
[347731885,1736086264861,-500.0,9.315e-05,2]
[347731886,1736086264871,-740.92,9.315e-05,2]
[347731887,1736086264880,-500.0,9.315e-05,2]
[347731888,1736086264890,-500.0,9.315e-05,2]
[347731889,1736086264900,-2696.37,9.315e-05,2]
[347731890,1736086264910,-5172.3,9.315e-05,2]
[347731891,1736086264919,-500.0,9.315e-05,2]
[347731892,1736086264928,-500.0,9.315e-05,2]
[347731893,1736086264938,-500.0,9.315e-05,2]
[347731894,1736086264947,-3610.4,9.315e-05,2]
[347731895,1736086264957,-535.70954898,9.315e-05,2]
[347731896,1736086264966,-500.0,9.315e-05,2]
[347731897,1736086264976,-1720.92,9.315e-05,2]
[347731898,1736086264985,-500.0,9.315e-05,2]
[347731899,1736086264995,-500.0,9.315e-05,2]
[347731900,1736086265003,-563.17,9.315e-05,2]
[347731901,1736086265013,-500.0,9.315e-05,2]
[347731902,1736086265022,-9470.22,9.315e-05,2]
[347731903,1736086265031,-826.83,9.315e-05,2]
[347731904,1736086265040,-3794.49,9.315e-05,2]
[347731905,1736086265049,-500.0,9.315e-05,2]
[347731906,1736086265059,-500.0,9.315e-05,2]
[347731907,1736086265069,-6784.81,9.315e-05,2]
[347731908,1736086265080,-500.0,9.315e-05,2]
[347731909,1736086265089,-588.06,9.315e-05,2]
[347731910,1736086265099,-500.0,9.315e-05,2]
[347731911,1736086265109,-500.0,9.315e-05,2]
[347731912,1736086265119,-500.0,9.315e-05,2]
[347731913,1736086265129,-500.0,9.315e-05,2]
[347731914,1736086265138,-794.51,9.315e-05,2]
[347731915,1736086265147,-500.0,9.315e-05,2]
[347731916,1736086265157,-500.0,9.315e-05,2]
[347731917,1736086265167,-2104.73,9.315e-05,2]
[347731918,1736086265176,-500.0,9.315e-05,2]
[347731919,1736086265186,-681.56,9.315e-05,2]
[347731920,1736086265195,-500.0,9.315e-05,2]
[347731921,1736086265204,-500.0,9.315e-05,2]
[347731922,1736086265214,-1028.13,9.315e-05,2]
[347731923,1736086265224,-500.0,9.315e-05,2]
[347731924,1736086265235,-500.0,9.315e-05,2]
[347731925,1736086265244,-2275.82,9.315e-05,2]
[347731926,1736086265253,-799.97,9.315e-05,2]
[347731927,1736086265263,-500.0,9.315e-05,2]
[347731928,1736086265272,-4126.42,9.315e-05,2]
[347731929,1736086265283,-500.0,9.315e-05,2]
[347731930,1736086265292,-2155.22,9.315e-05,2]
[347731931,1736086265303,-904.05,9.315e-05,2]
[347731932,1736086265312,-500.0,9.315e-05,2]
[347731933,1736086265322,-1274.18,9.315e-05,2]
[347731934,1736086265331,-441.85411437,9.315e-05,2]
[347731935,1736086265341,-500.0,9.315e-05,2]
[347731936,1736086265350,-1646.52,9.315e-05,2]
[347731937,1736086265360,-649.75,9.315e-05,2]
[347731938,1736086265371,-500.0,9.315e-05,2]
[347731939,1736086265381,-500.0,9.315e-05,2]
[347731940,1736086265391,-1698.25,9.315e-05,2]
[347731941,1736086265400,-726.75,9.315e-05,2]
[347731942,1736086265410,-1175.56,9.315e-05,2]
[347731943,1736086265420,-1006.34,9.315e-05,2]
[347731944,1736086265430,-500.0,9.315e-05,2]
[347731945,1736086265439,-7862.72,9.315e-05,2]
[347731946,1736086265450,-1992.9,9.315e-05,2]
[347731947,1736086265460,-338.58949237,9.315e-05,2]
[347731948,1736086265470,-500.0,9.315e-05,2]
[347731949,1736086265479,-500.0,9.315e-05,2]
[347731950,1736086265489,-876.69,9.315e-05,2]
[347731951,1736086265499,-759.27,9.315e-05,2]
[347731952,1736086265508,-500.0,9.315e-05,2]
[347731953,1736086265517,-500.0,9.315e-05,2]
[347731954,1736086265526,-500.0,9.315e-05,2]
[347731955,1736086265536,-773.96,9.315e-05,2]
[347731956,1736086265545,-5451.35,9.315e-05,2]
[347731957,1736086265556,-731.73,9.315e-05,2]
[347731958,1736086265565,-629.31,9.315e-05,2]
[347731959,1736086265575,-973.18,9.315e-05,2]
[347731960,1736086265584,-1242.03,9.315e-05,2]
[347731961,1736086265594,-500.0,9.315e-05,2]
[347731962,1736086265604,-500.0,9.315e-05,2]
[347731963,1736086265614,-500.0,9.315e-05,2]
[347731964,1736086265623,-1142.45,9.315e-05,2]
[347731965,1736086265634,-694.64,9.315e-05,2]
[347731966,1736086265643,-765.41,9.315e-05,2]
[347731967,1736086265653,-1305.75,9.315e-05,2]
[347731968,1736086265663,-636.94,9.315e-05,2]
[347731969,1736086265671,-1082.12,9.315e-05,2]
[347731970,1736086265680,-1333.19,9.315e-05,2]
[347731971,1736086265690,-500.0,9.315e-05,2]
[347731972,1736086265700,-791.96,9.315e-05,2]
[347731973,1736086265709,-647.45,9.315e-05,2]
[347731974,1736086265719,-500.0,9.315e-05,2]
[347731975,1736086265729,-500.0,9.315e-05,2]
[347731976,1736086265739,-906.7,9.315e-05,2]
[347731977,1736086265748,-513.23,9.315e-05,2]
[347731978,1736086265757,-500.0,9.315e-05,2]
[347731979,1736086265767,-744.9,9.315e-05,2]
[347731980,1736086265776,-500.0,9.315e-05,2]
[347731981,1736086265786,-973.52,9.315e-05,2]
[347731982,1736086265795,-500.0,9.315e-05,2]
[347731983,1736086265806,-752.87,9.315e-05,2]
[347731984,1736086265815,-4352.47,9.315e-05,2]
[347731985,1736086265825,-616.35,9.315e-05,2]
[347731986,1736086265834,-1428.44,9.315e-05,2]
[347731987,1736086265843,-1510.34,9.315e-05,2]
[347731988,1736086265852,-746.25,9.315e-05,2]
[347731989,1736086265862,-500.0,9.315e-05,2]
[347731990,1736086265872,-918.71,9.315e-05,2]
[347731991,1736086265881,-500.0,9.315e-05,2]
[347731992,1736086265890,-1062.74,9.315e-05,2]
[347731993,1736086265900,-500.0,9.315e-05,2]
[347731994,1736086265910,-864.92,9.315e-05,2]
[347731995,1736086265919,-500.0,9.315e-05,2]
[347731996,1736086265929,-505.07,9.315e-05,2]
[347731997,1736086265938,-500.0,9.315e-05,2]
[347731998,1736086265947,-1359.22,9.315e-05,2]
[347731999,1736086265957,-500.0,9.315e-05,2]
[347732000,1736086265967,-500.0,9.315e-05,2]
[347732001,1736086265977,-1013.07,9.315e-05,2]
[347732002,1736086265987,-1387.03,9.315e-05,2]
[347732003,1736086265997,-500.0,9.315e-05,2]
[347732004,1736086266006,-921.41,9.315e-05,2]